fUSD/lending_fUSD_20241027
["ID","MTS","AMOUNT","RATE_DAILY","PERIOD"]
[340900982,1730045773352,-160.0,0.00046,96]
[340900983,1730045773378,-160.0,0.00046,96]
[340900984,1730045773407,-160.0,0.00046,96]
[340900985,1730045773431,-160.0,0.00046,96]
[340900986,1730045773457,-160.0,0.00046,96]
[340900987,1730045773483,-160.0,0.00046,96]
[340900988,1730045773508,-306.99879254,0.00046,96]
[340900989,1730045773534,-1030.2,0.000461,60]
[340900990,1730045773561,-201.351522,0.000461,36]
[340900991,1730045773585,-500.0,0.00046103,30]
[340900992,1730045773609,-874.17492081,0.00046152,60]
[340900993,1730045773633,-1612.21,0.00046186,30]
[340900994,1730045773659,-500.0,0.00046205,30]
[340900995,1730045773683,-319.47138642,0.000465,120]
[340900996,1730045773707,-500.0,0.00046575,30]
[340900997,1730045773732,-500.0,0.00046575,30]
[340900998,1730045773756,-500.0,0.00046575,30]
[340900999,1730045773781,-500.0,0.00046575,30]
[340901000,1730045773805,-500.0,0.00046575,30]
[340901001,1730045773830,-500.0,0.00046575,30]
[340901002,1730045773860,-500.0,0.00046575,30]
[340901003,1730045773886,-500.0,0.00046575,30]
[340901004,1730045773910,-500.0,0.00046575,30]
[340901005,1730045773935,-500.0,0.00046575,30]
[340901006,1730045773959,-500.0,0.00046575,30]
[340901007,1730045773983,-500.0,0.00046575,30]
[340901008,1730045774007,-500.0,0.00046575,30]
[340901009,1730045774030,-500.0,0.00046575,30]
[340901010,1730045774054,-500.0,0.00046575,30]
[340901011,1730045774078,-183.61568792,0.00046575,30]
[340901012,1730045774103,-4048.0,0.000467,117]
[340901013,1730045774132,-1030.2,0.000469,60]
[340901014,1730045774159,-500.0,0.00046968,30]
[340901015,1730045774184,-159.11018283,0.00047,60]
[340901016,1730045774210,-203.48510959,0.00047,120]
[340901017,1730045774234,-181.68807877,0.0004748,115]
[340901018,1730045774258,-219.71,0.00047507,120]
[340901019,1730045774284,-1030.2,0.000478,60]
[340901020,1730045774407,-150.62462513,0.00048,120]
[340901021,1730045774432,-500.0,0.00048129,30]
[340901022,1730045774458,-500.0,0.00048264,30]
[340901023,1730045774483,-500.0,0.00048747,30]
[340901024,1730045774507,-174.2125,0.00048888,30]
[340901025,1730045774531,-8797.07865472,0.00048889,120]
[340901026,1730045774556,-160.49482694,0.000489,120]
[340901027,1730045774580,-500.0,0.00048965,30]
[340901028,1730045774606,-166.61,0.00048968,120]
[340901029,1730045774631,-16726.84892972,0.00049,30]
[340901030,1730045774655,-151.0,0.00049315,120]
[340901031,1730045774680,-198.413021,0.00049315,120]
[340901032,1730045774706,-1500.0,0.00049315,120]
[340901033,1730045774731,-151.0,0.00049315,120]
[340901034,1730045774755,-236.498857,0.00049315,120]
[340901035,1730045774780,-500.0,0.00049374,30]
[340901036,1730045774805,-219.41974446,0.0004949,120]
[340901037,1730045774829,-500.0,0.00049493,30]
[340901038,1730045774852,-204.02936175,0.000495,120]
[340901039,1730045774877,-171.0,0.000496,120]
[340901040,1730045774902,-1000.0,0.000498,120]
[340901041,1730045774937,-156.83,0.000498,48]
[340901042,1730045774964,-156.83,0.000498,48]
[340901043,1730045774990,-156.83,0.000498,48]
[340901044,1730045775017,-156.83,0.000498,48]
[340901045,1730045775043,-156.83,0.000498,48]
[340901046,1730045775069,-156.83,0.000498,48]
[340901047,1730045775092,-501.88938151,0.00049942,30]
[340901048,1730045775119,-456.53707753,0.00049999,120]
[340901049,1730045775144,-399.89852834,0.00049999,120]
[340901050,1730045775169,-446.33036519,0.00049999,120]
[340901051,1730045775194,-312.03161145,0.00049999,120]
[340901052,1730045775218,-374.88774134,0.00049999,31]
[340901053,1730045775241,-150.51539713,0.0005,120]
[340901054,1730045775265,-156.09,0.0005,120]
[340901055,1730045775289,-175.0,0.0005,120]
[340901056,1730045775313,-2000.0,0.0005,120]
[340901057,1730045775339,-150.0,0.0005,30]
[340901058,1730045775366,-39553.43696887,0.0005,30]
[340901059,1730045775391,-16005.81845448,0.0005,30]
[340901060,1730045775418,-923.46026278,0.0005,120]
[340901061,1730045775443,-4455.0,0.00050507,117]
[340901062,1730045775468,-500.0,0.00050815,60]
[340901063,1730045775494,-500.0,0.00050854,60]
[340901064,1730045775519,-1098.883953,0.000509,30]
[340901065,1730045775544,-500.0,0.00050992,60]
[340901066,1730045775567,-195.31,0.00051,120]
[340901067,1730045775591,-150.0,0.00051,30]
[340901068,1730045775615,-296.0601161,0.0005158,30]
[340901069,1730045775638,-1000.0,0.00051646,120]
[340901070,1730045775666,-150.85,0.00051684,120]
[340901071,1730045775690,-155.005,0.0005175,120]
[340901072,1730045775715,-155.005,0.0005175,120]
[340901073,1730045775739,-155.005,0.0005175,120]
[340901074,1730045775764,-155.005,0.0005175,120]
[340901075,1730045775787,-155.005,0.0005175,120]
[340901076,1730045775810,-500.0,0.00051793,60]
[340901077,1730045775834,-150.0,0.00052,30]
[340901078,1730045775857,-16088.69803255,0.00052,120]
[340901079,1730045775881,-500.0,0.00052389,60]
[340901080,1730045775904,-150.0,0.00053,30]
[340901081,1730045775929,-1449.221,0.00053254,98]
[340901082,1730045775952,-100000.0,0.000533,30]
[340901083,1730045775976,-160.198944,0.000533,30]
[340901084,1730045776000,-505.00450532,0.00053416,60]
[340901085,1730045776024,-150.0,0.00054,30]
[340901086,1730045776048,-1030.2,0.00054,60]
[340901087,1730045776072,-500.0,0.00054137,60]
[340901088,1730045776097,-500.0,0.00054178,60]
[340901089,1730045776123,-4860.0,0.00054314,117]
[340901090,1730045776147,-1111.80375,0.00054392,30]
[340901091,1730045776172,-152.75371469,0.000545,120]
[340901092,1730045776200,-1250.0,0.00054794,120]
[340901093,1730045776225,-212.3612126,0.00054794,120]
[340901094,1730045776251,-1250.0,0.00054794,120]
[340901095,1730045776276,-1250.0,0.00054794,120]
[340901096,1730045776300,-500.0,0.00054794,30]
[340901097,1730045776324,-500.0,0.00054794,120]
[340901098,1730045776348,-504.80612374,0.00054794,120]
[340901099,1730045776372,-1000.0,0.00054794,120]
[340901100,1730045776498,-1000.0,0.00054794,120]
[340901101,1730045776522,-1000.0,0.00054794,120]
[340901102,1730045776545,-539.5043055,0.00054794,120]
[340901103,1730045776569,-500.0,0.00054794,30]
[340901104,1730045776593,-503.04766003,0.00054794,30]
[340901105,1730045776617,-768.00594786,0.00054794,120]
[340901106,1730045776640,-500.0,0.00054794,120]
[340901107,1730045776666,-500.0,0.00054794,120]
[340901108,1730045776690,-500.0,0.00054794,120]
[340901109,1730045776714,-500.0,0.00054794,120]
[340901110,1730045776739,-500.0,0.00054794,120]
[340901111,1730045776762,-500.0,0.00054794,120]
[340901112,1730045776787,-500.0,0.00054794,120]
[340901113,1730045776811,-500.0,0.00054794,120]
[340901114,1730045776836,-500.0,0.00054794,120]
[340901115,1730045776861,-500.0,0.00054794,120]
[340901116,1730045776886,-500.0,0.00054794,120]
[340901117,1730045776912,-500.0,0.00054794,120]
[340901118,1730045776936,-500.0,0.00054794,120]
[340901119,1730045776961,-500.0,0.00054794,120]
[340901120,1730045776986,-500.0,0.00054794,120]
[340901121,1730045777010,-500.0,0.00054794,120]
[340901122,1730045777035,-500.0,0.00054794,120]
[340901123,1730045777060,-500.0,0.00054794,120]
[340901124,1730045777085,-500.0,0.00054794,120]
[340901125,1730045777113,-500.0,0.00054794,120]
[340901126,1730045777137,-558.0,0.00054795,120]
[340901127,1730045777164,-500.0,0.00054795,120]
[340901128,1730045777198,-812.0,0.00054795,120]
[340901129,1730045777223,-506.0,0.00054795,120]
[340901130,1730045777331,263.48689816,0.00054794,120]
[340901131,1730045777361,1000.0,0.00043835,30]
[340901132,1730045777400,1000.0,0.0004396,60]
[340901133,1730045777437,1000.0,0.000441,74]
[340901134,1730045779932,370.47636696,0.00054712,30]
[340901135,1730045802460,-937.0,0.00043959,30]
[340901136,1730045802485,-398.11033102,0.00043959,120]
[340901137,1730045802511,-153.0,0.00043959,120]
[340901138,1730045802536,-496.9091,0.00043959,30]
[340901139,1730045802561,-794.0,0.00043959,30]
[340901140,1730045802587,-776.2067479,0.00043959,120]
[340901143,1730045875319,2027.12,0.00043959,30]
[340901148,1730045932302,153.0,0.00043956,120]
[340901149,1730045945113,398.11033102,0.00043956,120]
[340901150,1730045953691,496.9091,0.00043956,30]
[340901151,1730046025693,153.0,0.00043956,120]
[340901154,1730046067942,398.11033102,0.00043956,120]
[340901155,1730046073871,1244.6157,0.00043956,30]
[340901156,1730046074819,166.0,0.00043956,120]
[340902133,1730046137796,150.0,0.00043956,30]
[340902134,1730046264609,794.0,0.00043956,30]
[340902135,1730046265483,305.0,0.00043956,30]
[340902136,1730046265856,185.57181088,0.00043956,60]
[340902137,1730046331302,34913.65011179,0.000101,2]
[340902138,1730046336565,150.09744179,0.0001,2]
[340902139,1730046338665,2250.0,9e-05,2]
[340902140,1730046349148,194.999999,0.00043956,30]
[340902141,1730046358654,5762.85701038,6.94e-05,2]
[340902142,1730046362733,159.50703486,0.00043956,31]
[340902144,1730046376463,191.52902963,0.00043956,30]
[340902147,1730046470330,312.35704663,0.00043956,120]
[340902148,1730046478184,305.07295659,0.00043956,30]
[340902149,1730046483869,1038.49528163,0.0001,2]
[340902152,1730046517003,162.32332764,0.00043956,30]
[340902153,1730046524205,225.43884589,0.00043956,30]
[340902154,1730046524364,644.59729309,0.00043956,120]
[340902155,1730046526591,948.45665403,0.0001,2]
[340902157,1730046528961,182.3860367,0.00043956,30]
[340902159,1730046531526,556.91361475,0.00043956,90]
[340902185,1730046631844,-250.0,0.00014022,2]
[340902186,1730046631856,-128.9529,0.00014149,2]
[340902187,1730046631869,-21.0471,0.00014149,2]
[340902188,1730046631881,-3300.0,0.000147,5]
[340902189,1730046631892,-149.3985631,0.000148,5]
[340902190,1730046631905,-6550.6014369,0.000148,5]
[340902191,1730046631916,-178.0025,0.000149,2]
[340902192,1730046631927,-10100.0,0.000149,5]
[340902193,1730046631938,-154.60014855,0.000149,2]
[340902194,1730046631949,-4102.5590545,0.000149,2]
[340902195,1730046631960,-500.77958896,0.00014973,2]
[340902196,1730046631971,-401.98949668,0.00014973,2]
[340902197,1730046631981,-150.0,0.00014989,2]
[340902198,1730046631992,-3926.50456417,0.0001499,3]
[340902199,1730046632005,-14144.59999871,0.0001499,3]
[340902200,1730046632018,-208578.95891312,0.0001499,3]
[340902201,1730046632030,-143282.23608256,0.00015,2]
[340902202,1730046632047,-6604.29457041,0.00015,2]
[340902203,1730046632060,-633.79664741,0.00015,2]
[340902204,1730046632073,-902.70574293,0.00015,2]
[340902382,1730046638236,-848.39363495,0.00015,2]
[340902444,1730046639867,-847.38714177,0.00015,2]
[340902445,1730046639925,-542.119,0.00015,2]
[340902446,1730046639983,-891.65073301,0.00015,2]
[340902447,1730046640149,-703.39523779,0.00015,2]
[340902448,1730046640161,-441.82908433,0.00015,2]
[340902500,1730046643043,-20351.287671,0.00015,2]
[340902501,1730046643155,-951.12600792,0.00015,2]
[340902502,1730046643275,-308004.55057115,0.00015,2]
[340902503,1730046643287,-8949.6371379,0.00015,2]
[340902504,1730046643306,-2627.37237972,0.00015,2]
[340902524,1730046645994,-4743.34918623,0.000149,2]
[340902525,1730046646004,-93750.12670729,0.00015,2]
[340902757,1730046862182,794.0,0.0004396,30]
[340902758,1730046907797,-150.0,0.00014282,2]
[340902762,1730047154623,-869.532,0.000147,2]
[340902763,1730047154650,-6239.1967,0.000149,2]
[340902764,1730047154673,-169.69717311,0.000149,2]
[340902765,1730047154696,-5842.2916,0.000149,2]
[340902766,1730047154717,-920.2787,0.000149,2]
[340902767,1730047154740,-150.0,0.00014989,2]
[340902768,1730047154765,-203848.703481,0.0001499,3]
[340902769,1730047154788,-3000.0,0.00014999,2]
[340902770,1730047154810,-1241935.79578229,0.00015,2]
[340902771,1730047231764,-33872.83986867,0.00015,2]
[340902772,1730047231786,-183596.28978544,0.00015,2]
[340902773,1730047460772,794.0,0.00043929,30]
[340902792,1730047831982,-1674.29978993,0.00015119,2]
[340902797,1730047832284,-542.049063,0.00015119,2]
[340903033,1730047838019,-3191.95457957,0.00015119,2]
[340903035,1730047838030,-158.93,0.00015342,2]
[340903036,1730047838040,-150.03,0.00015342,2]
[340903037,1730047838049,-155.64,0.00015342,2]
[340903038,1730047838059,-160.72,0.00015342,2]
[340903039,1730047838068,-157.35,0.00015342,2]
[340903040,1730047838078,-310.0,0.000175,2]
[340903041,1730047838087,-327.74389812,0.00018,2]
[340903042,1730047838098,-810.0,0.00022384,2]
[340903043,1730047838108,-3570.57,0.00023,2]
[340903044,1730047838119,-452.88001317,0.0002425,2]
[340903045,1730047838128,-150.03,0.000247,2]
[340903046,1730047838138,-1013.14080275,0.0002495,2]
[340903047,1730047838147,-203.0,0.000253,10]
[340903048,1730047838158,-155.64,0.00026401,2]
[340903049,1730047838167,-157.35,0.00026401,2]
[340903050,1730047838177,-518.42877985,0.00027397,2]
[340903051,1730047838186,-570.57,0.00029344,2]
[340903052,1730047838195,-169.69717311,0.0002938,2]
[340903053,1730047838205,-250.0,0.00030861,2]
[340903054,1730047838215,-250.0,0.00030871,2]
[340903055,1730047838224,-372.68,0.0003119,2]
[340903056,1730047838237,-150.0,0.00031198,7]
[340903057,1730047838249,-200.0,0.00031309,2]
[340903058,1730047838262,-4099.31911568,0.00031309,2]
[340903059,1730047838279,-1180.35981087,0.00031309,2]
[340903063,1730047840011,-1554.60969396,0.00031309,2]
[340903064,1730047840335,-499.88,0.00031309,2]
[340903082,1730047843159,-16565.83137949,0.00031309,2]
[340903083,1730047843169,-570.57,0.00031608,2]
[340903084,1730047843179,-1000.0,0.00031692,2]
[340903085,1730047843189,-500.0,0.00031825,2]
[340903086,1730047843199,-168.495,0.00031825,2]
[340903087,1730047843209,-0.19996032,0.00031825,2]
[340903088,1730047843220,-168.29503968,0.00031825,2]
[340903089,1730047843229,-168.495,0.00031825,2]
[340903090,1730047843239,-168.495,0.00031825,2]
[340903091,1730047843248,-168.495,0.00031825,2]
[340903092,1730047843258,-168.495,0.00031825,2]
[340903093,1730047843267,-459.32,0.00031834,2]
[340903094,1730047843277,-168.02,0.00031838,2]
[340903095,1730047843287,-250.0,0.00031844,2]
[340903096,1730047843296,-199.52,0.00031878,2]
[340903097,1730047843305,-200.0,0.00031968,2]
[340903098,1730047843315,-160.18,0.00032025,30]
[340903099,1730047843325,-210.36,0.00032115,120]
[340903100,1730047843335,-907.52,0.00032134,2]
[340903101,1730047843346,-510.05574393,0.000322,2]
[340903102,1730047843355,-549.80144064,0.000332,30]
[340903103,1730047843365,-549.80144064,0.000332,30]
[340903104,1730047843374,-540.22351313,0.000332,30]
[340903105,1730047843499,-9.57792751,0.000332,30]
[340903106,1730047843508,-549.80144064,0.000332,30]
[340903107,1730047843517,-549.80144064,0.000332,30]
[340903108,1730047843526,-395.15317937,0.000332,30]
[340903122,1730047846001,-168.495,0.00031825,2]
[340903125,1730047846011,-168.495,0.00031825,2]
[340903127,1730047846021,-65.47997783,0.00031825,2]
[340903129,1730047846032,-103.01502217,0.00031825,2]
[340903130,1730047846042,-168.495,0.00031825,2]
[340903132,1730047846052,-154.64826127,0.000332,30]
[340903134,1730047846062,-549.80144064,0.000332,30]
[340903136,1730047846072,-549.80144064,0.000332,30]
[340903138,1730047846082,-549.80144064,0.000332,30]
[340903140,1730047846091,-549.80144064,0.000332,30]
[340903141,1730047846102,-549.80144064,0.000332,30]
[340903143,1730047846114,-549.80144064,0.000332,30]
[340903144,1730047846123,-549.80144064,0.000332,30]
[340903145,1730047846133,-549.80144064,0.000332,30]
[340903146,1730047846143,-549.80144064,0.000332,30]
[340903147,1730047846153,-273.99348037,0.000332,30]
[340903176,1730048062989,794.0,0.00043939,30]
[340903178,1730048661820,794.0,0.0004394,30]
[340903179,1730048703451,250.0,0.00015,2]
[340903188,1730049032218,-154.66,0.00015342,2]
[340903189,1730049032229,-150.03,0.00015342,2]
[340903190,1730049032239,-66.94241637,0.00015497,2]
[340903214,1730049038624,-83.05758363,0.00015497,2]
[340903215,1730049038634,-300.0,0.00017,2]
[340903216,1730049038644,-592.0,0.000171,2]
[340903217,1730049038653,-154.66,0.00022945,2]
[340903218,1730049038663,-150.03,0.00026401,2]
[340903219,1730049038672,-154.66,0.00030548,2]
[340903220,1730049038681,-390.4239774,0.00030849,2]
[340903221,1730049038691,-678.66843897,0.00031,10]
[340903231,1730049040469,-321.33156103,0.00031,10]
[340903232,1730049040479,-54.06843897,0.0003104,2]
[340903233,1730049040527,-336.35553843,0.0003104,2]
[340903234,1730049040536,-390.4239774,0.00031486,2]
[340903235,1730049040689,-390.4239774,0.00031565,2]
[340903236,1730049040703,-551.53,0.00031647,2]
[340903237,1730049040713,-390.4239776,0.00031886,2]
[340903238,1730049040723,-1000.0,0.00032918,2]
[340903239,1730049040732,-1241.0119131,0.00033207,2]
[340903240,1730049040742,-6544.4950501,0.00033207,2]
[340903241,1730049040752,-23900.0,0.00033228,2]
[340903242,1730049040761,-167.0,0.00033252,2]
[340903243,1730049040771,-150.0,0.00033625,7]
[340903244,1730049040781,-250.0,0.00033654,2]
[340903245,1730049040791,-250.0,0.0003369,120]
[340903246,1730049040800,-250.0,0.00033736,2]
[340903247,1730049040810,-453.76,0.0003377,2]
[340903248,1730049040819,-175.3,0.00033813,120]
[340903249,1730049040828,-551.53,0.00033911,2]
[340903250,1730049040838,-200.0,0.00033933,2]
[340903251,1730049040847,-160.18,0.00034018,120]
[340903252,1730049040856,-150.0,0.00034548,10]
[340903253,1730049040866,-167.0,0.00034624,2]
[340903254,1730049040875,-166.61,0.00035222,120]
[340903255,1730049040885,-167.0,0.00035996,2]
[340903256,1730049040894,-551.53,0.00036175,2]
[340903257,1730049040903,-1000.0,0.00037033,2]
[340903259,1730049040913,-792.817,0.00037368,48]
[340903260,1730049040922,-167.0,0.00037368,2]
[340903262,1730049040932,-155.64,0.0003746,2]
[340903264,1730049040942,-157.35,0.0003746,2]
[340903266,1730049040952,-150.03,0.0003746,2]
[340903268,1730049040961,-554.3151,0.0003758,2]
[340903270,1730049040970,-146849.1548,0.0003758,2]
[340903272,1730049040979,-23256.9184,0.0003758,2]
[340903274,1730049040989,-13290.99813113,0.0003767,8]
[340903276,1730049041000,-1764.02329,0.0003767,8]
[340903312,1730049043388,-379.063557,0.0003767,8]
[340903320,1730049046420,-75030.0,0.0003767,8]
[340903321,1730049046530,-1891.77968179,0.0003767,8]
[340903325,1730049262691,795.0,0.00043941,30]
[340903329,1730049581105,3000.0,0.00043939,30]
[340903330,1730049601385,484.38,0.00043939,30]
[340903331,1730049860154,8875.48,0.00024,60]
[340903333,1730049908144,971135.94523834,0.00015,2]
[340903334,1730049929553,26472.67350683,0.000101,2]
[340903335,1730049954762,26403.53866087,6.94e-05,2]
[340903336,1730050020461,5220.51868747,0.00015,14]
[340903337,1730050042596,5073.57377178,0.0001305,2]
[340903338,1730050075580,24109.98357994,0.00012579,2]
[340903339,1730050075607,4201.70864564,0.00013,2]
[340903340,1730050077011,4022.91465019,0.00013,15]
[340903341,1730050079699,10938.26824488,0.0001,2]
[340903342,1730050082691,407754.02097841,0.00015,2]
[340903343,1730050089759,2174.52005367,0.00013,4]
[340903344,1730050109257,200.0,0.00014925,30]
[340903345,1730050109284,212.27768587,0.00014925,30]
[340903346,1730050109316,200.0,0.00014925,30]
[340903347,1730050109375,200.0,0.00014925,30]
[340903348,1730050109446,200.0,0.00014925,30]
[340903349,1730050117657,7263.2700758,0.0004395,60]
[340903358,1730050231399,-156.5,0.00015342,2]
[340903359,1730050231408,-160.72,0.00015342,2]
[340903361,1730050231418,-150.0,0.00015511,2]
[340903363,1730050231429,-295.0,0.000171,2]
[340903365,1730050231438,-657.28788836,0.00022,5]
[340903368,1730050231450,-30273.66490999,0.00022,5]
[340903370,1730050231460,-251.03035225,0.000249,2]
[340903372,1730050231469,-307.49753,0.00025,7]
[340903374,1730050231479,-156.5,0.00028858,2]
[340903376,1730050231488,-503.02,0.00034277,2]
[340903378,1730050231497,-226.88,0.00035564,2]
[340903379,1730050231506,-250.0,0.00035741,2]
[340903380,1730050231515,-250.0,0.0003597,2]
[340903381,1730050231525,-166.61,0.00035974,120]
[340903382,1730050231534,-23900.0,0.00035995,2]
[340903383,1730050231544,-250.0,0.00036012,120]
[340903384,1730050231553,-634.254,0.0003603,44]
[340903385,1730050231563,-150.0,0.00036136,7]
[340903386,1730050231572,-1388.39,0.00036136,2]
[340903387,1730050231581,-821.62,0.00036136,2]
[340903388,1730050231590,-1000.0,0.00036409,2]
[340903389,1730050231599,-160.18,0.00036436,120]
[340903390,1730050231609,-503.02,0.0003654,2]
[340903391,1730050231618,-175.3,0.00036846,120]
[340903392,1730050231629,-1550.0,0.00037,2]
[340903393,1730050231638,-153.74,0.0003726,2]
[340903394,1730050231647,-153.09,0.0003726,2]
[340903395,1730050231656,-482.37,0.0003726,2]
[340903396,1730050231665,-160.9,0.0003726,2]
[340903397,1730050231675,-155.42,0.0003726,2]
[340903398,1730050231684,-360.29,0.0003726,2]
[340903400,1730050231693,-360.29,0.0003726,2]
[340903402,1730050231701,-430.9,0.0003726,2]
[340903404,1730050231710,-358.7,0.0003726,2]
[340903406,1730050231719,-378.45,0.0003726,2]
[340903407,1730050231728,-305.71,0.0003726,2]
[340903409,1730050231737,-430.9,0.0003726,2]
[340903411,1730050231747,-430.9,0.0003726,2]
[340903413,1730050231755,-425.84,0.0003726,2]
[340903415,1730050231765,-430.9,0.0003726,2]
[340903417,1730050231774,-430.9,0.0003726,2]
[340903419,1730050231783,-443.36,0.0003726,2]
[340903421,1730050231792,-150.0,0.0003726,2]
[340903423,1730050231800,-150.0,0.0003726,2]
[340903425,1730050231810,-150.0,0.0003726,2]
[340903427,1730050231819,-690.24774,0.000374,2]
[340903429,1730050231828,-517.9218,0.0003757,2]
[340903431,1730050231838,-163.1,0.00037574,2]
[340903433,1730050231847,-150.01,0.00037579,2]
[340903435,1730050231855,-35392.5783,0.0003758,2]
[340903437,1730050231864,-23256.9184,0.0003758,2]
[340903439,1730050231875,-288.5635,0.0003758,2]
[340903441,1730050231884,-183212.395209,0.0003767,8]
[340903443,1730050231892,-41893.6136542,0.0003768,2]
[340903446,1730050231908,-140188.07214671,0.0003768,2]
[340903447,1730050231919,-5574.6920824,0.0003768,2]
[340903488,1730050242463,-150.01,0.00037579,2]
[340903490,1730050242472,-20151.87689772,0.0003768,2]
[340903493,1730050242576,-744.5,0.0003768,2]
[340903494,1730050242635,-25352.43190742,0.0003768,2]
[340903526,1730050326987,50000.0,0.0004395,30]
[340903527,1730050339306,50000.0,0.0004395,31]
[340903528,1730050343308,50000.0,0.0004395,32]
[340903529,1730050347568,50000.0,0.0004395,33]
[340903530,1730050351211,50000.0,0.0004395,34]
[340903531,1730050368283,1241.76636592,0.0004395,120]
[340903540,1730050507033,250.0,0.00015,2]
[340903541,1730050773650,10000.0,0.0004393,30]
[340903542,1730050809461,10000.0,0.0004393,31]
[340903543,1730050814249,10000.0,0.0004393,32]
[340903544,1730050818539,10000.0,0.0004393,33]
[340903545,1730050823657,10000.0,0.0004393,34]
[340903546,1730051025732,-157.35,0.00015342,2]
[340903547,1730051025755,-150.0,0.00015521,2]
[340903548,1730051040994,-46607.6898809,0.0001726,2]
[340903549,1730051097733,50000.0,0.0004393,30]
[340903550,1730051102084,50000.0,0.0004393,31]
[340903551,1730051105643,50000.0,0.0004393,32]
[340903552,1730051109840,50000.0,0.0004393,33]
[340903553,1730051113356,50000.0,0.0004393,34]
[340903565,1730051431609,-150.0,0.00015718,2]
[340903566,1730051431619,-157.35,0.00030548,2]
[340903567,1730051431629,-452.71,0.00034621,2]
[340903568,1730051431639,-507.403,0.00036022,44]
[340903569,1730051431648,-226.88,0.00036415,2]
[340903570,1730051431657,-250.0,0.00036424,120]
[340903571,1730051431668,-8566.74,0.00036433,2]
[340903572,1730051431678,-170.9,0.00036436,2]
[340903573,1730051431687,-150.0,0.00036438,2]
[340903574,1730051431697,-150.0,0.00036438,2]
[340903575,1730051431707,-250.0,0.00036452,2]
[340903576,1730051431716,-150.0,0.00036501,7]
[340903577,1730051431726,-160.18,0.00036511,120]
[340903578,1730051431735,-1000.0,0.00036736,2]
[340903579,1730051431745,-175.3,0.00036748,120]
[340903580,1730051431754,-150.0,0.00036778,2]
[340903581,1730051431764,-150.0,0.00036778,2]
[340903582,1730051431774,-452.71,0.00036885,2]
[340903583,1730051431783,-150.0,0.0003726,2]
[340903584,1730051431792,-150.0,0.0003726,2]
[340903585,1730051431803,-150.0,0.0003726,2]
[340903586,1730051431812,-150.0,0.0003726,2]
[340903587,1730051431823,-150.0,0.0003726,2]
[340903588,1730051431832,-150.0,0.0003726,2]
[340903589,1730051431842,-150.0,0.0003726,2]
[340903590,1730051431852,-150.0,0.0003726,2]
[340903591,1730051431862,-150.0,0.0003726,2]
[340903592,1730051431871,-150.0,0.0003726,2]
[340903593,1730051431880,-365.93,0.0003726,2]
[340903594,1730051431890,-500.0,0.00037492,2]
[340903595,1730051431899,-500.0,0.00037492,2]
[340903596,1730051431909,-500.0,0.00037492,2]
[340903597,1730051431918,-500.0,0.00037492,2]
[340903598,1730051431928,-500.0,0.00037492,2]
[340903599,1730051431937,-411.5029,0.00037492,2]
[340903600,1730051431946,-1000.0,0.00037492,2]
[340903601,1730051431955,-1000.0,0.00037492,2]
[340903602,1730051431965,-1000.0,0.00037492,2]